fUSD/lending_fUSD_20250929
["ID","MTS","AMOUNT","RATE_DAILY","PERIOD"]
[388416575,1759162245845,-151.0,0.00019177,2]
[388416576,1759162245855,-7154.158261,0.00019177,2]
[388416577,1759162245865,-151.0,0.00019177,2]
[388416578,1759162245875,-151.0,0.00019177,2]
[388416579,1759162245886,-151.0,0.00019177,2]
[388416580,1759162245896,-151.0,0.00019177,2]
[388416581,1759162245906,-151.0,0.00019177,2]
[388416582,1759162245915,-151.0,0.00019177,2]
[388416583,1759162245926,-151.0,0.00019177,2]
[388416584,1759162245937,-151.0,0.00019177,2]
[388416585,1759162245947,-243.65171,0.00019177,2]
[388416586,1759162245956,-157.671799,0.00019177,2]
[388416587,1759162245966,-157.671799,0.00019177,2]
[388416588,1759162245976,-157.671799,0.00019177,2]
[388416589,1759162245986,-157.671799,0.00019177,2]
[388416590,1759162245995,-151.0,0.00019177,2]
[388416591,1759162246005,-151.0,0.00019177,2]
[388416592,1759162246015,-151.0,0.00019177,2]
[388416593,1759162246025,-151.0,0.00019177,2]
[388416594,1759162246035,-151.0,0.00019177,2]
[388416595,1759162246044,-151.0,0.00019177,2]
[388416596,1759162246054,-151.0,0.00019177,2]
[388416597,1759162246064,-151.0,0.00019177,2]
[388416598,1759162246075,-151.0,0.00019177,2]
[388416599,1759162246085,-151.0,0.00019177,2]
[388416600,1759162246095,-151.0,0.00019177,2]
[388416601,1759162246104,-151.0,0.00019177,2]
[388416602,1759162246114,-151.0,0.00019177,2]
[388416603,1759162246124,-501.022181,0.00019177,2]
[388416604,1759162246134,-501.022181,0.00019177,2]
[388416605,1759162246144,-501.022181,0.00019177,2]
[388416606,1759162246154,-501.022181,0.00019177,2]
[388416607,1759162246163,-151.0,0.00019177,2]
[388416608,1759162246173,-151.0,0.00019177,2]
[388416609,1759162246183,-151.0,0.00019177,2]
[388416610,1759162246194,-167.447516,0.00019177,2]
[388416611,1759162246203,-318.567197,0.00019177,2]
[388416612,1759162246214,-318.567197,0.00019177,2]
[388416613,1759162246223,-318.567197,0.00019177,2]
[388416614,1759162246233,-151.0,0.00019177,2]
[388416615,1759162246243,-151.0,0.00019177,2]
[388416616,1759162246253,-318.567197,0.00019177,2]
[388416617,1759162246263,-151.0,0.00019177,2]
[388416618,1759162246274,-151.0,0.00019177,2]
[388416619,1759162246283,-151.0,0.00019177,2]
[388416620,1759162246293,-977.131095,0.00019177,2]
[388416621,1759162246304,-977.131095,0.00019177,2]
[388416622,1759162246314,-977.131095,0.00019177,2]
[388416623,1759162246324,-977.131095,0.00019177,2]
[388416624,1759162246335,-151.0,0.00019177,2]
[388416625,1759162246344,-404.402045,0.00019177,2]
[388416626,1759162246354,-151.0,0.00019177,2]
[388416627,1759162246364,-151.0,0.00019177,2]
[388416628,1759162246379,-404.402045,0.00019177,2]
[388416629,1759162246391,-404.402045,0.00019177,2]
[388416630,1759162246402,-404.402045,0.00019177,2]
[388416631,1759162246412,-151.0,0.00019177,2]
[388416632,1759162246424,-151.0,0.00019178,2]
[388416633,1759162246433,-5000.0,0.00019178,2]
[388416634,1759162246446,-151.0,0.00019178,2]
[388416635,1759162246458,-151.0,0.00019178,2]
[388416636,1759162246468,-151.0,0.00019178,2]
[388416637,1759162246478,-151.0,0.00019178,2]
[388416638,1759162246490,-151.0,0.00019178,2]
[388416639,1759162246500,-151.0,0.00019178,2]
[388416640,1759162246510,-151.0,0.00019178,2]
[388416641,1759162246520,-151.0,0.00019178,2]
[388416642,1759162246529,-151.0,0.00019178,2]
[388416643,1759162246539,-151.0,0.00019178,2]
[388416644,1759162246550,-151.0,0.00019178,2]
[388416645,1759162246560,-151.0,0.00019178,2]
[388416646,1759162246570,-151.0,0.00019178,2]
[388416647,1759162246580,-188.0,0.00019178,2]
[388416648,1759162246589,-500.0,0.00019178,2]
[388416649,1759162246599,-500.0,0.00019178,2]
[388416650,1759162246609,-500.0,0.00019178,2]
[388416651,1759162246618,-500.0,0.00019178,2]
[388416652,1759162246628,-500.0,0.00019178,2]
[388416653,1759162246638,-500.0,0.00019178,2]
[388416654,1759162246648,-500.0,0.00019178,2]
[388416655,1759162246658,-500.0,0.00019178,2]
[388416656,1759162246667,-10272.10520533,0.0001923,2]
[388416657,1759162246677,-156.7763599,0.00019232,2]
[388416658,1759162246688,-11624.8064886,0.00019244,2]
[388416659,1759162246698,-21593.4527084,0.00019263,2]
[388416660,1759162246708,-855.9543315,0.00019263,2]
[388416661,1759162246718,-10652.17309792,0.00019285,2]
[388416662,1759162246728,-341.0,0.00019305,2]
[388416663,1759162246738,-341.0,0.00019312,2]
[388416664,1759162246748,-341.0,0.0001932,2]
[388416665,1759162246758,-11046.30350255,0.0001934,2]
[388416666,1759162246768,-200.0,0.00019373,2]
[388416667,1759162246778,-8661.55421531,0.00019395,2]
[388416668,1759162246787,-806.74,0.00019405,2]
[388416669,1759162246797,-806.74,0.00019405,2]
[388416670,1759162246807,-946.94,0.00019405,2]
[388416671,1759162246817,-473.47,0.00019405,2]
[388416672,1759162246827,-473.47,0.00019405,2]
[388416673,1759162246837,-473.47,0.00019405,2]
[388416674,1759162246846,-473.47,0.00019405,2]
[388416675,1759162246858,-518.99449017,0.00019421,2]
[388416676,1759162246868,-1000.0,0.00019421,2]
[388416677,1759162246878,-907.6299967,0.00019421,2]
[388416678,1759162246888,-1000.0,0.00019421,2]
[388416679,1759162246898,-1000.0,0.00019421,2]
[388416680,1759162246908,-1000.0,0.00019421,2]
[388416681,1759162246917,-1000.0,0.00019421,2]
[388416682,1759162246927,-1000.0,0.00019421,2]
[388416683,1759162246937,-500.0,0.00019421,2]
[388416684,1759162246948,-1000.0,0.00019421,2]
[388416685,1759162246958,-1000.0,0.00019421,2]
[388416686,1759162246967,-580.40454504,0.00019421,2]
[388416687,1759162246977,-1000.0,0.00019421,2]
[388416688,1759162246987,-501.77899718,0.00019421,2]
[388416689,1759162246996,-1000.0,0.00019421,2]
[388416690,1759162247005,-1000.0,0.00019421,2]
[388416691,1759162247015,-1000.0,0.00019421,2]
[388416692,1759162247025,-1000.0,0.00019421,2]
[388416693,1759162247035,-1000.0,0.00019421,2]
[388416694,1759162247044,-523.48007584,0.00019421,2]
[388416695,1759162247053,-1000.0,0.00019421,2]
[388416696,1759162247064,-1000.0,0.00019421,2]
[388416697,1759162247073,-505.31409027,0.00019421,2]
[388416698,1759162247083,-1000.0,0.00019421,2]
[388416699,1759162247092,-1000.0,0.00019421,2]
[388416700,1759162247101,-1000.0,0.00019421,2]
[388416701,1759162247111,-1000.0,0.00019421,2]
[388416702,1759162247121,-1000.0,0.00019421,2]
[388416703,1759162247131,-1000.0,0.00019421,2]
[388416704,1759162247141,-1000.0,0.00019421,2]
[388416705,1759162247150,-501.00326715,0.00019421,2]
[388416706,1759162247159,-1000.0,0.00019421,2]
[388416707,1759162247169,-156.7763599,0.00019421,2]
[388416708,1759162247185,-151.0,0.00019448,2]
[388416709,1759162247195,-151.0,0.00019448,2]
[388416710,1759162247206,-341.0,0.00019483,2]
[388416711,1759162247216,-341.0,0.00019558,2]
[388416712,1759162247228,-156.7763599,0.00019611,2]
[388416713,1759162247239,-341.0,0.0001962,2]
[388416714,1759162247248,-500.0,0.00019626,2]
[388416715,1759162247258,-500.0,0.00019626,2]
[388416716,1759162247268,-500.0,0.00019626,2]
[388416717,1759162247278,-500.0,0.00019626,2]
[388416718,1759162247287,-500.0,0.00019626,2]
[388416719,1759162247297,-500.0,0.00019626,2]
[388416720,1759162247307,-500.0,0.00019626,2]
[388416721,1759162247316,-500.0,0.00019626,2]
[388416722,1759162247326,-500.0,0.00019626,2]
[388416723,1759162247336,-500.0,0.00019626,2]
[388416724,1759162247345,-500.0,0.00019626,2]
[388416725,1759162247355,-500.0,0.00019626,2]
[388416726,1759162247364,-500.0,0.00019626,2]
[388416727,1759162247376,-500.0,0.00019626,2]
[388416728,1759162247386,-500.0,0.00019626,2]
[388416729,1759162247396,-500.0,0.00019626,2]
[388416730,1759162247405,-500.0,0.00019626,2]
[388416731,1759162247415,-286.40459877,0.00019626,2]
[388416732,1759162247425,-10194.79533531,0.00019645,2]
[388416733,1759162247435,-247.99,0.00019648,2]
[388416734,1759162247445,-26803.91107322,0.0001965,2]
[388416735,1759162247456,-341.0,0.0001965,2]
[388416736,1759162247467,-1933.51272664,0.0001965,2]
[388416737,1759162247477,-513.7664376,0.00019651,2]
[388416738,1759162247487,-170.56,0.00019652,2]
[388416739,1759162247498,-4070.5994244,0.00019652,2]
[388416740,1759162247508,-4147.89112379,0.00019652,2]
[388416741,1759162247519,-26803.91107322,0.00019658,2]
[388416742,1759162247529,-67156.71607382,0.00019658,2]
[388416743,1759162247540,-26803.91107322,0.00019659,2]
[388416744,1759162247551,-4147.89112379,0.0001966,2]
[388416745,1759162247561,-341.0,0.00019662,2]
[388416746,1759162247572,-940.37348297,0.00019666,2]
[388416747,1759162247582,-67156.71607382,0.00019669,2]
[388416748,1759162247592,-5552.89231202,0.00019673,2]
[388416749,1759162247602,-513.7664376,0.00019674,2]
[388416750,1759162247613,-1933.51272664,0.00019674,2]
[388416751,1759162247623,-5552.89231202,0.00019685,2]
[388416752,1759162247633,-4147.89112379,0.00019685,2]
[388416753,1759162247644,-4147.89112379,0.00019687,2]
[388416754,1759162247654,-600.0,0.00019688,2]
[388416755,1759162247663,-4070.5994244,0.0001969,2]
[388416756,1759162247673,-10194.79533531,0.0001969,2]
[388416757,1759162247683,-5552.89231202,0.00019691,2]
[388416758,1759162247693,-393.84792283,0.00019695,2]
[388416759,1759162247703,-4147.89112379,0.00019695,2]
[388416760,1759162247713,-700.0,0.00019699,2]
[388416761,1759162247723,-393.84792283,0.000197,2]
[388416762,1759162247733,-4070.5994244,0.00019701,2]
[388416763,1759162247743,-940.37348297,0.00019702,2]
[388416764,1759162247753,-10194.79533531,0.00019702,2]
[388416765,1759162247762,-26803.91107322,0.00019703,2]
[388416766,1759162247774,-393.84792283,0.00019707,2]
[388416767,1759162247784,-1933.51272664,0.00019712,2]
[388416768,1759162247794,-10194.79533531,0.00019713,2]
[388416769,1759162247804,-393.84792283,0.00019713,2]
[388416770,1759162247813,-10194.79533531,0.00019716,2]
[388416771,1759162247823,-26803.91107322,0.00019719,2]
[388416772,1759162247833,-157.7873608,0.00019719,2]
[388416773,1759162247843,-4070.5994244,0.00019719,2]
[388416774,1759162247853,-4147.89112379,0.00019721,2]
[388416775,1759162247863,-67156.71607382,0.00019723,2]
[388416776,1759162247873,-940.37348297,0.00019725,2]
[388416777,1759162247884,-1000.0,0.00019725,5]
[388416778,1759162247894,-1000.0,0.00019725,5]
[388416779,1759162247904,-168.6,0.00019725,5]
[388416780,1759162247914,-1474.35467507,0.00019725,5]
[388416781,1759162247924,-6659.37222101,0.00019725,8]
[388416782,1759162247933,-300.0,0.00019725,2]
[388416783,1759162247943,-156.587,0.00019726,2]
[388416784,1759162247953,-351.92318229,0.00019727,2]
[388416785,1759162247963,-67156.71607382,0.00019727,2]
[388416786,1759162247974,-26803.91107322,0.00019729,2]
[388416787,1759162247984,-5552.89231202,0.0001973,2]
[388416788,1759162247994,-2593.8449335,0.00019736,2]
[388416789,1759162248004,-513.7664376,0.00019738,2]
[388416790,1759162248014,-940.37348297,0.00019739,2]
[388416791,1759162248026,-4070.5994244,0.0001974,2]
[388416792,1759162248036,-181.35,0.00019741,2]
[388416793,1759162248046,-1933.51272664,0.00019742,2]
[388416794,1759162248056,-10194.79533531,0.00019742,2]
[388416795,1759162248066,-1933.51272664,0.00019751,2]
[388416796,1759162248077,-1933.51272664,0.00019753,2]
[388416797,1759162248086,-4070.5994244,0.00019755,2]
[388416798,1759162248096,-4818.1505609,0.00019756,2]
[388416799,1759162248106,-190.989227,0.00019756,2]
[388416800,1759162248116,-393.84792283,0.00019756,2]
[388416801,1759162248126,-205.79272368,0.0001976,2]
[388416802,1759162248136,-513.7664376,0.00019763,2]
[388416803,1759162248147,-1933.51272664,0.00019768,2]
[388416804,1759162248157,-940.37348297,0.00019769,2]
[388416805,1759162248167,-67156.71607382,0.0001977,2]
[388416806,1759162248177,-4147.89112379,0.00019771,2]
[388416807,1759162248186,-393.84792283,0.00019771,2]
[388416808,1759162248196,-26803.91107322,0.00019772,2]
[388416809,1759162248206,-513.7664376,0.00019774,2]
[388416810,1759162248216,-5552.89231202,0.00019774,2]
[388416811,1759162248226,-67156.71607382,0.00019787,2]
[388416812,1759162248237,-341.0,0.00019791,2]
[388416813,1759162248248,-513.7664376,0.00019793,2]
[388416814,1759162248258,-4070.5994244,0.00019793,2]
[388416815,1759162248269,-940.37348297,0.00019795,2]
[388416816,1759162248279,-67156.71607382,0.00019795,2]
[388416817,1759162248289,-10194.79533531,0.00019795,2]
[388416818,1759162248299,-513.7664376,0.00019796,2]
[388416819,1759162248309,-940.37348297,0.00019797,2]
[388416820,1759162248320,-5552.89231202,0.00019798,2]
[388416821,1759162248329,-5552.89231202,0.00019799,2]
[388416822,1759162248339,-393.84792283,0.00019799,2]
[388416823,1759162248349,-1000.0,0.00019799,2]
[388416824,1759162248360,-156.7763599,0.000198,2]
[388416825,1759162248370,-181.15294841,0.000198,2]
[388416826,1759162248383,-654.29,0.00019851,2]
[388416827,1759162248393,-250.0,0.00019855,2]
[388416828,1759162248403,-22656.92,0.0001988,2]
[388416829,1759162248415,-341.0,0.00019892,2]
[388416830,1759162248425,-300.0,0.00019899,2]
[388416831,1759162248435,-1076841.48819392,0.000199,2]
[388416832,1759162248445,-151.0,0.000199,2]
[388416833,1759162248455,-151.0,0.000199,2]
[388416834,1759162248465,-151.0,0.000199,2]
[388416835,1759162248476,-151.0,0.000199,2]
[388416836,1759162248485,-151.0,0.000199,2]
[388416837,1759162248495,-155.814944,0.000199,2]
[388416838,1759162248505,-151.0,0.000199,2]
[388416839,1759162248515,-151.0,0.000199,2]
[388416840,1759162248873,-151.0,0.000199,2]
[388416841,1759162248884,-288.411963,0.000199,2]
[388416842,1759162248894,-151.0,0.000199,2]
[388416843,1759162248905,-170.015739,0.000199,2]
[388416844,1759162248915,-151.0,0.000199,2]
[388416845,1759162248925,-151.0,0.000199,2]
[388416846,1759162248935,-151.0,0.000199,2]
[388416847,1759162248945,-151.0,0.000199,2]
[388416848,1759162248955,-151.0,0.000199,2]
[388416849,1759162248965,-151.0,0.000199,2]
[388416850,1759162248975,-151.0,0.000199,2]
[388416851,1759162248986,-151.0,0.000199,2]
[388416852,1759162248996,-151.0,0.000199,2]
[388416853,1759162249006,-151.0,0.000199,2]
[388416854,1759162249016,-151.0,0.000199,2]
[388416855,1759162249027,-151.0,0.000199,2]
[388416856,1759162249037,-151.0,0.000199,2]
[388416857,1759162249047,-151.0,0.000199,2]
[388416858,1759162249057,-151.0,0.000199,2]
[388416859,1759162249067,-240.026497,0.000199,2]
[388416860,1759162249078,-151.0,0.000199,2]
[388416861,1759162249087,-264.415768,0.000199,2]
[388416862,1759162249098,-264.415768,0.000199,2]
[388416863,1759162249109,-264.415768,0.000199,2]
[388416864,1759162249119,-264.415768,0.000199,2]
[388416865,1759162249128,-151.0,0.000199,2]
[388416866,1759162249138,-151.0,0.000199,2]
[388416867,1759162249149,-151.0,0.000199,2]
[388416868,1759162249159,-151.0,0.000199,2]
[388416869,1759162249169,-151.0,0.000199,2]
[388416870,1759162249179,-151.0,0.000199,2]
[388416871,1759162249188,-151.0,0.000199,2]
[388416872,1759162249198,-151.0,0.000199,2]
[388416873,1759162249208,-151.0,0.000199,2]
[388416874,1759162249218,-191.153183,0.000199,2]
[388416875,1759162249228,-151.0,0.000199,2]
[388416876,1759162249239,-151.0,0.000199,2]
[388416877,1759162249248,-196.014295,0.000199,2]
[388416878,1759162249259,-151.0,0.000199,2]
[388416879,1759162249269,-151.0,0.000199,2]
[388416880,1759162249278,-151.0,0.000199,2]
[388416881,1759162249288,-165.795924,0.000199,2]
[388416882,1759162249297,-165.795924,0.000199,2]
[388416883,1759162249307,-165.795924,0.000199,2]
[388416884,1759162249318,-151.0,0.000199,2]
[388416885,1759162249327,-165.795924,0.000199,2]
[388416886,1759162249337,-151.0,0.000199,2]
[388416887,1759162249346,-151.0,0.000199,2]
[388416888,1759162249357,-184.385177,0.000199,2]
[388416889,1759162249367,-184.385177,0.000199,2]
[388416890,1759162249381,-184.385177,0.000199,2]
[388416891,1759162249391,-184.385177,0.000199,2]
[388416892,1759162249401,-151.0,0.000199,2]
[388416893,1759162249411,-151.0,0.000199,2]
[388416894,1759162249424,-151.0,0.000199,2]
[388416895,1759162249434,-151.0,0.000199,2]
[388416896,1759162249444,-151.0,0.000199,2]
[388416897,1759162249456,-151.0,0.000199,2]
[388416898,1759162249467,-151.0,0.000199,2]
[388416899,1759162249478,-161.71296,0.000199,2]
[388416900,1759162249488,-278.099318,0.000199,2]
[388416901,1759162249498,-151.0,0.000199,2]
[388416902,1759162249508,-151.0,0.000199,2]
[388416903,1759162249517,-151.0,0.000199,2]
[388416904,1759162249528,-258.015425,0.000199,2]
[388416905,1759162249538,-258.015425,0.000199,2]
[388416906,1759162249548,-258.015425,0.000199,2]
[388416907,1759162249558,-258.015425,0.000199,2]
[388416908,1759162249568,-167.739812,0.000199,2]
[388416909,1759162249578,-151.0,0.000199,2]
[388416910,1759162249588,-167.739812,0.000199,2]
[388416911,1759162249599,-197.909035,0.000199,2]
[388416912,1759162249609,-167.739812,0.000199,2]
[388416913,1759162249619,-167.739812,0.000199,2]
[388416914,1759162249630,-151.0,0.000199,2]
[388416915,1759162249639,-479.535177,0.000199,2]
[388416916,1759162249649,-151.0,0.000199,2]
[388416917,1759162249659,-151.0,0.000199,2]
[388416918,1759162249669,-251.912171,0.000199,2]
[388416919,1759162249680,-151.0,0.000199,2]
[388416920,1759162249689,-479.535177,0.000199,2]
[388416921,1759162249699,-151.0,0.000199,2]
[388416922,1759162249709,-253.651052,0.000199,2]
[388416923,1759162249720,-479.535177,0.000199,2]
[388416924,1759162249730,-234.482756,0.000199,2]
[388416925,1759162249740,-479.535177,0.000199,2]
[388416926,1759162249751,-500.0,0.000199,7]
[388416927,1759162249761,-151.0,0.000199,2]
[388416928,1759162249772,-151.0,0.000199,2]
[388416929,1759162249782,-183.415345,0.000199,2]
[388416930,1759162249793,-151.0,0.000199,2]
[388416931,1759162249802,-183.415345,0.000199,2]
[388416932,1759162249812,-183.415345,0.000199,2]
[388416934,1759162249822,-151.0,0.000199,2]
[388416935,1759162249833,-183.415345,0.000199,2]
[388416936,1759162249843,-155.474325,0.000199,2]
[388416937,1759162249854,-1664.126647,0.000199,2]
[388416938,1759162249864,-155.474325,0.000199,2]
[388416939,1759162249875,-1664.126647,0.000199,2]
[388416940,1759162249886,-155.474325,0.000199,2]
[388416941,1759162249897,-1664.126647,0.000199,2]
[388416942,1759162249907,-155.474325,0.000199,2]
[388416943,1759162249917,-2552.287152,0.000199,2]
[388416944,1759162249927,-1664.126647,0.000199,2]
[388416945,1759162249938,-151.0,0.000199,2]
[388416947,1759162249951,-162.843007,0.000199,2]
[388416948,1759162249961,-151.0,0.000199,2]
[388416949,1759162249971,-151.0,0.000199,2]
[388416950,1759162249982,-2637.117872,0.000199,2]
[388416951,1759162249992,-224.291622,0.000199,2]
[388416952,1759162250002,-2637.117872,0.000199,2]
[388416953,1759162250012,-151.0,0.000199,2]
[388416954,1759162250023,-7154.158261,0.000199,2]
[388416955,1759162250033,-224.291622,0.000199,2]
[388416956,1759162250043,-2637.117872,0.000199,2]
[388416957,1759162250052,-151.0,0.000199,2]
[388416958,1759162250062,-151.0,0.000199,2]
[388416959,1759162250073,-151.0,0.000199,2]
[388416961,1759162250083,-7154.158261,0.000199,2]
[388416962,1759162250093,-2637.117872,0.000199,2]
[388416963,1759162250103,-224.291622,0.000199,2]
[388416964,1759162250113,-151.0,0.000199,2]
[388416965,1759162250124,-7154.158261,0.000199,2]
[388416966,1759162250133,-224.291622,0.000199,2]
[388416967,1759162250143,-221.675072,0.000199,2]
[388416968,1759162250154,-7154.158261,0.000199,2]
[388416969,1759162250165,-151.0,0.000199,2]
[388416970,1759162250177,-151.0,0.000199,2]
[388416971,1759162250188,-151.0,0.000199,2]
[388416972,1759162250199,-151.0,0.000199,2]
[388416974,1759162250210,-151.0,0.000199,2]
[388416975,1759162250220,-151.0,0.000199,2]
[388416976,1759162250231,-157.671799,0.000199,2]
[388416977,1759162250241,-157.671799,0.000199,2]
[388416978,1759162250251,-157.671799,0.000199,2]
[388416979,1759162250261,-157.671799,0.000199,2]
[388416980,1759162250272,-151.0,0.000199,2]
[388416981,1759162250283,-151.0,0.000199,2]
[388416982,1759162250294,-151.0,0.000199,2]
[388416983,1759162250305,-165.31,0.000199,2]
[388416984,1759162250315,-151.0,0.000199,2]
[388416985,1759162250326,-198.140906,0.000199,2]
[388416987,1759162250336,-151.0,0.000199,2]
[388416988,1759162250346,-501.022181,0.000199,2]
[388416989,1759162250356,-501.022181,0.000199,2]
[388416990,1759162250365,-501.022181,0.000199,2]
[388416991,1759162250382,-501.022181,0.000199,2]
[388416992,1759162250393,-163.421808,0.000199,2]
[388416993,1759162250403,-151.0,0.000199,2]
[388416994,1759162250415,-151.0,0.000199,2]
[388416995,1759162250426,-318.567197,0.000199,2]
[388416996,1759162250436,-318.567197,0.000199,2]
[388416997,1759162250447,-318.567197,0.000199,2]
[388416999,1759162250460,-151.0,0.000199,2]
[388417000,1759162250470,-151.0,0.000199,2]
[388417001,1759162250480,-318.567197,0.000199,2]
[388417002,1759162250490,-151.0,0.000199,2]
[388417003,1759162250500,-151.0,0.000199,2]
[388417004,1759162250511,-151.0,0.000199,2]
[388417005,1759162250522,-977.131095,0.000199,2]
[388417006,1759162250533,-977.131095,0.000199,2]
[388417007,1759162250543,-977.131095,0.000199,2]
[388417008,1759162250555,-977.131095,0.000199,2]
[388417009,1759162250565,-151.0,0.000199,2]
[388417010,1759162250576,-404.402045,0.000199,2]
[388417011,1759162250586,-200.883336,0.000199,2]
[388417012,1759162250597,-404.402045,0.000199,2]
[388417013,1759162250607,-404.402045,0.000199,2]
[388417014,1759162250618,-167.62,0.00019938,2]
[388417015,1759162250628,-151.65,0.00019938,2]
[388417016,1759162250638,-335.11,0.00019938,2]
[388417017,1759162250649,-824.42,0.00019938,2]
[388417018,1759162250659,-14404.33355246,0.0001995,15]
[388417019,1759162250670,-302.0,0.0001995,2]
[388417020,1759162250680,-300.0,0.00019952,2]
[388417021,1759162250690,-1500.0,0.00019968,2]
[388417022,1759162250699,-1500.0,0.00019968,2]
[388417023,1759162250709,-562.5287038,0.00019968,2]
[388417024,1759162250719,-1500.0,0.00019968,2]
[388417025,1759162250729,-1500.0,0.00019968,2]
[388417027,1759162250739,-1500.0,0.00019968,2]
[388417028,1759162250749,-1500.0,0.00019968,2]
[388417029,1759162250759,-1401.4094343,0.00019968,2]
[388417030,1759162250769,-1500.0,0.00019968,2]
[388417031,1759162250779,-1500.0,0.00019968,2]
[388417032,1759162250789,-835.70304984,0.00019968,2]
[388417033,1759162250799,-1500.0,0.00019968,2]
[388417034,1759162250809,-483.75808727,0.00019968,2]
[388417035,1759162250819,-1007.10051927,0.00019968,2]
[388417036,1759162250829,-1500.0,0.00019968,2]
[388417037,1759162250840,-1500.0,0.00019968,2]
[388417038,1759162250850,-1500.0,0.00019968,2]
[388417039,1759162250860,-968.46191497,0.00019968,2]
[388417041,1759162250869,-1500.0,0.00019968,2]
[388417042,1759162250879,-1500.0,0.00019968,2]
[388417043,1759162250889,-369.57854038,0.00019968,2]
[388417044,1759162250900,-1500.0,0.00019968,2]
[388417045,1759162250910,-1500.0,0.00019968,2]
[388417046,1759162250920,-1500.0,0.00019968,2]
[388417047,1759162250930,-500.0,0.0001997,2]
[388417048,1759162250940,-500.0,0.0001997,2]
[388417049,1759162250950,-1000.0,0.0001997,2]
[388417050,1759162250959,-1000.0,0.0001997,2]
[388417051,1759162250969,-151.0,0.00019996,2]
[388417052,1759162250979,-153.19917327,0.00019996,2]
[388417054,1759162250988,-973.5915,0.00019999,2]
[388417055,1759162250998,-1668.92216994,0.0002,2]
[388417056,1759162251008,-150.0,0.0002,2]
[388417057,1759162251018,-150.0,0.0002,2]
[388417058,1759162251029,-20000.0,0.0002,2]
[388417059,1759162251039,-150.0,0.0002,2]
[388417060,1759162251049,-150.0,0.0002,2]
[388417061,1759162251058,-214.0,0.0002,2]
[388417062,1759162251068,-150.0,0.0002,2]
[388417063,1759162251079,-150.0,0.0002,2]
[388417064,1759162251089,-150.0,0.0002,2]
[388417065,1759162251099,-2000.0,0.0002,2]
[388417066,1759162251110,-3573.8,0.0002,2]
[388417068,1759162251120,-150.0,0.0002,2]
[388417069,1759162251130,-1000.0,0.0002,2]
[388417070,1759162251140,-1000.0,0.0002,2]
[388417071,1759162251150,-150.0,0.0002,2]
[388417072,1759162251160,-150.0,0.0002,2]
[388417073,1759162251170,-200.97825,0.0002,2]
[388417074,1759162251180,-150.0,0.0002,2]
[388417075,1759162251190,-4000.0,0.0002,4]
[388417076,1759162251201,-200.0,0.00020017,2]
[388417077,1759162251211,-2943.6,0.00020018,2]
[388417078,1759162251221,-341.0,0.00020044,2]
[388417079,1759162251231,-173.52271755,0.00020048,12]
[388417080,1759162251241,-152.0,0.00020079,3]
[388417082,1759162251251,-2518.17,0.00020162,2]
[388417083,1759162251262,-2473.96,0.00020174,2]
[388417084,1759162251272,-1668.92216994,0.000202,2]
[388417085,1759162251282,-174.1507457,0.00020245,2]